[Event "Karel Janecek Open 2025"]
[Site "Prague"]
[Date "2025.03.03"]
[Round "5.2"]
[White "Vykouk, Jan"]
[Black "Raja Rithvik R"]
[Result "0-1"]
[Annotator "TA"]
[ECO "B90"]
[WhiteElo "2478"]
[BlackElo "2522"]
[PlyCount "82"]
[EventDate "2025.02.21"]
[EventType "swiss"]
[EventCountry "CZE"]
[SourceTitle "playchess.com"]
[Source "ChessBase"]
[SourceQuality "1"]
[TimeControl "40/5400+30:1800+30"]

{[%evp 11,82,22,12,22,12,0,9,6,4,15,5,3,13,8,21,-33,-34,-25,-25,-52,-39,-49,-62,-72,-72,-72,-50,-45,-40,-67,-60,-71,-67,-90,-60,-60,-15,-41,-32,-51,-36,-33,-45,-38,-14,-13,-14,-50,-47,-37,-35,-101,-96,-97,-97,-247,-235,-239,-260,-255,-289,-602,-607,-688,-662,-2707,-2187,-4622,-4618,-2013,-356,-341,-340]} 1. e4 {[%emt 0:00:03]} c5 {[%emt 0:00:44]} 2. Nf3 {[%emt 0:00:15]} d6 {[%emt 0:00:08]} 3. d4 {[%emt 0:00:05]} cxd4 {[%emt 0:00:05]} 4. Nxd4 {[%emt 0:00:04]} Nf6 {[%emt 0:00:06]} 5. Nc3 {[%emt 0:00:05]} a6 {[%emt 0:00:06]} 6. h3 {[%emt 0:00:54]} b5 {[%emt 0:00:10][%cal Bb7b5,Bb5b4][%mdl 32]} 7. a4 {[%emt 0:00:06] B90: Sicilian Najdorf: Unusual White 6th moves, 6 Be3 Ng4 and 6 Be3 e5.} b4 {[%emt 0:00:07]} 8. Nd5 {[%emt 0:00:04]} e6 {[%emt 0:00:18]} 9. Nxf6+ {[%emt 0:01:56] The position is equal.} Qxf6 {[%emt 0:00:06]} 10. Be3 {[%emt 0:00:15]} Bb7 {[%emt 0:00:12]} 11. Qd2 {[%emt 0:01:39]} Bxe4 {[%emt 0:00:26]} 12. Qxb4 {[%emt 0:00:10][%cal Of1a6]} Qe7 {[%emt 0:00:03]} 13. Qd2 $146 {[%emt 0:17:32]} (13. Nb3 $11 d5 14. Qc3) ({Predecessor:} 13. f3 Bb7 14. Qd2 Qc7 15. Bd3 Be7 16. O-O Nd7 17. c4 Ne5 18. Be2 O-O 19. Rac1 {½-½ Simal Moreira,L (2402)-Laube,B (2397) W-ch WS/SIM/B/02 email 2019}) 13... Qb7 $15 {[%emt 0:08:19]} 14. f3 {[%emt 0:01:51]} Bg6 {[%emt 0:14:08][%cal Of8e7]} 15. h4 {[%emt 0:02:16] and h5 would now be decisive} h5 {[%emt 0:02:41][%cal Of8e7]} 16. Bd3 {[%emt 0:05:12]} Bxd3 {[%emt 0:00:40]} 17. Qxd3 {[%emt 0:00:51]} Nd7 {[%emt 0:03:55]} 18. b3 {[%emt 0:12:39]} Be7 {[%emt 0:08:44]} 19. Bg5 {[%emt 0:00:56][%cal Od4e6]} Ne5 {[%emt 0:00:26]} 20. Qd2 {[%emt 0:00:27]} O-O {[%emt 0:00:58]} 21. Bxe7 {[%emt 0:02:06]} Qxe7 {[%emt 0:00:05]} 22. Qg5 {[%emt 0:16:19]} Qc7 {[%emt 0:02:35]} 23. Rd1 {[%emt 0:04:12]} Qc3+ {[%emt 0:09:23] Black attacks} 24. Kf2 {[%emt 0:01:37]} Rac8 {[%emt 0:04:34]} 25. Qe3 {[%emt 0:04:12]} Rc7 {[%emt 0:06:57]} 26. Qxc3 {[%emt 0:05:13]} Rxc3 {[%emt 0:00:05]} 27. Rhe1 {[%emt 0:01:34]} Rfc8 {[%emt 0:04:45]} 28. Re3 {[%emt 0:00:24]} R3c7 {[%emt 0:01:21]} 29. Ne2 {[%emt 0:02:01]} (29. c4 $5) 29... Rxc2 {[%emt 0:06:55]} 30. Rxd6 {[%emt 0:00:05]} Ng6 {[%emt 0:00:39]} 31. Re4 {[%emt 0:02:49]} (31. Kg3 $15) 31... Rb2 $17 {[%emt 0:00:16]} 32. Rxa6 {[%emt 0:02:45]} Rcc2 $1 {[%emt 0:03:49] Black is more active.} 33. g3 {[%emt 0:01:02] [#] Repels Nf4. Loses the game.} (33. Kf1 $17) 33... Ne7 $1 $19 {[%emt 0:00:31][%cal Oe7d5]} (33... Rxb3 34. Ra8+ Nf8 35. g4 $15) 34. Ra8+ {[%emt 0:06:13]} Kh7 {[%emt 0:00:05][%cal Oe7d5]} 35. Ra7 {[%emt 0:00:15] [#]} Nd5 {[%emt 0:01:02] Threatens to win with ...Nc3.} 36. Rxf7 $2 {[%emt 0:02:07]} (36. Kf1 Rb1+ (36... Rxb3 37. Rxf7 Kg8 38. Ra7 $11) 37. Kg2) 36... Nc3 {[%emt 0:00:19]} (36... Rxb3 37. Rxe6 Nb4 38. g4 hxg4 39. Re4 $11 (39. fxg4 Nd3+ 40. Kg2 Rc4 $11)) 37. Rxe6 {[%emt 0:00:05]} Nxe2 {[%emt 0:00:39]} ({Weaker is} 37... Rxe2+ 38. Rxe2 Nxe2 39. Rc7 $17) 38. Rd6 {[%emt 0:02:47]} Rxb3 {[%emt 0:01:13] ( -> ...Nd4+)} 39. g4 {[%emt 0:02:49]} hxg4 {[%emt 0:02:28] ( -> ...g3+)} 40. Rdd7 {[%emt 0:00:09]} Rxf3+ $2 {[%emt 0:04:00]} (40... gxf3 41. Rxg7+ Kh6 42. Rh7+ Kg6 43. Rdg7+ Kf6) 41. Rxf3 {[%emt 0:30:06]} Nc3+ {[%emt 0:30:04] Weighted Error Value: White=0.56/Black=0.17 (very precise)   Mistake:       	White=4     	---        Inaccurate:     	White=4     	Black=2      OK:         	White=9     	Black=12     Best:        	White=2     	Black=3      Strong:       	---       	Black=2} ({But not} 41... gxf3 42. Kxf3 Ra2 43. Ra7) 0-1

[Event "Karel Janecek Open 2025"]
[Site "Prague"]
[Date "2025.03.03"]
[Round "5.3"]
[White "Pechac, Jergus"]
[Black "Stork, Oliver"]
[Result "1-0"]
[Annotator "TA"]
[ECO "A45"]
[WhiteElo "2603"]
[BlackElo "2395"]
[PlyCount "93"]
[EventDate "2025.02.21"]
[EventType "swiss"]
[EventCountry "CZE"]
[SourceTitle "playchess.com"]
[Source "ChessBase"]
[SourceQuality "1"]
[TimeControl "40/5400+30:1800+30"]

{[%evp 9,93,-14,-7,-12,-11,-14,0,0,0,0,-7,-3,-2,0,-2,0,0,0,21,6,43,34,58,-30,-31,-44,-44,-47,-35,-50,-54,-36,-39,-87,-95,-87,-36,-45,-19,-39,-28,-24,-15,-16,-20,-24,94,92,85,58,104,90,90,0,193,213,213,216,303,288,343,341,367,373,373,375,379,404,406,406,406,404,406,385,384,372,517,508,549,539,746,724,853,815,918,842]} 1. d4 {[%emt 0:04:03]} Nf6 {[%emt 0:04:51]} 2. Bg5 {[%emt 0:00:12]} e6 {[%emt 0:01:00]} 3. e3 {[%emt 0:00:51]} b6 {[%emt 0:06:13]} 4. Qf3 {[%emt 0:03:27]} d5 {[%emt 0:02:53]} 5. Nd2 {[%emt 0:10:59]} Be7 {[%emt 0:06:11]} 6. Bd3 {[%emt 0:04:39] A45: Trompowsky Attack.} c5 {[%emt 0:07:00]} 7. c3 {[%emt 0:02:50]} Bb7 $146 {[%emt 0:00:58]} (7... cxd4 8. exd4 O-O 9. g4 Nc6 10. Qh3 g6 11. Ngf3 e5 12. dxe5 Nxg4 13. Qh4 Bxg5 14. Nxg5 {0-1 Seibert,M (1906)-Dahlhaus,F (2161) Ruhrgebiet VK3 0708 2007 (5.3)}) 8. Qh3 {[%emt 0:07:16] The position is equal.} Nbd7 {[%emt 0:06:56][%cal Bb8d7,Bd7f6,Bf6e4][%mdl 32]} 9. f4 {[%emt 0:05:23]} Ne4 {[%emt 0:03:37]} 10. Bxe7 {[%emt 0:00:20]} Qxe7 {[%emt 0:00:06]} 11. Ngf3 {[%emt 0:00:11]} O-O {[%emt 0:28:02]} 12. O-O {[%emt 0:03:43]} Ndf6 {[%emt 0:00:17]} 13. Rad1 {[%emt 0:01:27]} a5 {[%emt 0:00:46]} 14. Rfe1 {[%emt 0:12:40]} Nxd2 {[%emt 0:08:26]} 15. Rxd2 {[%emt 0:03:12]} Ne4 {[%emt 0:00:05] [#]} 16. Ne5 {[%emt 0:05:18]} f6 $11 {[%emt 0:06:19][%cal Of6e5]} 17. Bxe4 {[%emt 0:00:05]} dxe4 {[%emt 0:00:09]} 18. Nc4 {[%emt 0:00:04]} b5 {[%emt 0:02:59]} (18... cxd4 19. Rxd4 Rab8 20. Red1 $11 (20. Nxb6 Bc6 $14)) 19. Na3 {[%emt 0:07:36]} b4 {[%emt 0:00:01]} 20. Nc4 {[%emt 0:00:19]} Ra6 {[%emt 0:00:44]} 21. Qh5 {[%emt 0:05:33]} (21. Rc2 $15) 21... Bd5 $17 {[%emt 0:01:06]} 22. Qe2 {[%emt 0:00:02]} Rc8 {[%emt 0:02:05]} ({Black should play} 22... bxc3 $1 $17 23. bxc3 cxd4 24. Rxd4 Rc6) 23. Rc1 $15 {[%emt 0:00:17]} Qa7 {[%emt 0:01:57]} 24. Rdc2 {[%emt 0:12:32]} Rac6 {[%emt 0:00:59]} 25. dxc5 {[%emt 0:03:33]} Rxc5 {[%emt 0:01:15]} 26. Nd6 {[%emt 0:03:15]} R8c6 {[%emt 0:03:49]} 27. Nb5 {[%emt 0:00:05] [#]} Rxb5 {[%emt 0:03:04]} 28. Qxb5 $16 {[%emt 0:00:03]} Qxe3+ {[%emt 0:00:06]} 29. Kh1 {[%emt 0:00:11]} bxc3 {[%emt 0:00:55]} (29... Qxf4 $2 30. c4 Kf7 31. h3 $18 (31. cxd5 $2 Qxc1+ 32. Rxc1 Rxc1+) (31. Qxa5 Rxc4 32. Rxc4 Bxc4 $18)) (29... h6 $1 $14) 30. bxc3 {[%emt 0:01:27][%cal Bb2c3,Bc3c4][%mdl 32]} h6 {[%emt 0:01:43] [#]} (30... Qxf4 31. c4 Rc8 32. Qd7 $11 (32. cxd5 $2 Qxc1+ 33. Rxc1 Rxc1+)) 31. f5 {[%emt 0:01:59]} ({White should try} 31. c4 $1 $16 {Black must now prevent h3.} Rc5 32. Qb1) 31... Rb6 $2 {[%emt 0:00:55] Black is now going downhill.} (31... Rc5 $1 $11 {and Black stays safe.} 32. Qe8+ Kh7 33. Qg6+ (33. fxe6 Bc4 $11) 33... Kh8) 32. Qe8+ $18 {[%emt 0:00:27]} (32. Qxa5 Bc4) 32... Kh7 33. c4 {[%emt 0:01:55]} Rb2 {[%emt 0:00:49]} (33... Qd3 $142) 34. Qg6+ {[%emt 0:00:01]} (34. fxe6 Rxc2 35. Rd1 Qf2 (35... Bxc4 $2 36. Qa4 $19) (35... Rc1 36. Qg8+ Kxg8 37. h4 Rxd1+ 38. Kh2 Qf4+ 39. g3 Qf3 40. cxd5 Qh1#)) 34... Kh8 {[%emt 0:00:08]} 35. Qg3 {[%emt 0:00:11]} Qd4 {[%emt 0:00:57] [#] ...Rxc2 is the strong threat.} 36. Rxb2 {[%emt 0:00:41]} (36. cxd5 $2 {too greedy.} Rxc2 (36... exf5 37. Rc8+ Kh7 38. R8c7) 37. Rb1 (37. Qb8+ $2 Kh7 $19) 37... Qb4 (37... Rxa2 38. Rb8+ Kh7 39. Qg6#) (37... exf5 $2 38. Qg6 $19) 38. Qb8+ (38. Rxb4 $2 {gets mated.} Rc1+) 38... Qxb8 39. Rxb8+ Kh7 $19) 36... Qxb2 {[%emt 0:00:01]} 37. Qc3 {[%emt 0:00:18]} Qxc3 {[%emt 0:00:56]} 38. Rxc3 {[%emt 0:00:01][%mdl 4096] Endgame KR-KB} Bc6 {[%emt 0:00:06]} 39. fxe6 {[%emt 0:00:05]} a4 {[%emt 0:00:45] Dodges Rb3} 40. Rc1 {[%emt 0:00:25]} Kg8 {[%emt 0:00:45]} 41. Rb1 {[%emt 0:31:53]} Kf8 {[%emt 0:30:17]} 42. Kg1 {[%emt 0:00:00]} Ke7 {[%emt 0:00:00]} 43. Rb6 {[%emt 0:00:00] White is clearly winning.} Be8 {[%emt 0:00:00]} 44. Kf2 {[%emt 0:00:00]} f5 {[%emt 0:00:00]} 45. Ke3 {[%emt 0:00:00]} g5 {[%emt 0:00:00]} 46. Kd4 {[%emt 0:00:00]} Kf6 {[%emt 0:00:00]} 47. c5 {[%emt 0:00:00] Weighted Error Value: White=0.10 (very precise) /Black=0.39  Loses game:     	---       	Black=1      Mistake:       	White=3     	Black=4      Inaccurate:     	---       	Black=4      OK:         	White=23    	Black=14     Best:        	White=3     	Black=4} 1-0

[Event "Karel Janecek Open 2025"]
[Site "Prague"]
[Date "2025.03.03"]
[Round "5.5"]
[White "Popovic, Dusan"]
[Black "Druska, Juraj"]
[Result "1/2-1/2"]
[Annotator "TA"]
[WhiteElo "2494"]
[BlackElo "2442"]
[PlyCount "40"]
[EventDate "2025.02.21"]
[EventType "swiss"]
[EventCountry "CZE"]
[SourceTitle "playchess.com"]
[Source "ChessBase"]
[SourceQuality "1"]
[TimeControl "40/5400+30:1800+30"]

{[%evp 9,17,3,17,9,25,4,11,0,4,8]} 1. Nf3 {[%emt 0:00:04]} d5 {[%emt 0:06:32]} 2. g3 {[%emt 0:00:10]} Nd7 {[%emt 0:00:05]} 3. Bg2 {[%emt 0:00:31]} e5 {[%emt 0:00:15]} 4. d3 {[%emt 0:00:08]} Ngf6 {[%emt 0:00:18]} 5. O-O {[%emt 0:01:20]} Be7 {[%emt 0:00:10]} 6. c4 {[%emt 0:01:49] A54: Old Indian Defence with Nf3, but without e4.} dxc4 {[%emt 0:00:22]} 7. dxc4 {[%emt 0:00:06]} O-O {[%emt 0:00:19]} 8. Qc2 {[%emt 0:00:55]} c6 {[%emt 0:00:21]} 9. b3 {[%emt 0:03:50] A rather calm draw.   Weighted Error Value: White=0.00 (flawless) /Black=0.03 (flawless)   OK:         	White=2     	Black=2      Best:        	---       	Black=1} Re8 $146 10. Bb2 Bf8 11. Nc3 Qc7 12. Rad1 a5 13. Ng5 h6 14. Nge4 Nxe4 15. Nxe4 Nc5 16. Bc3 f5 17. Nxc5 Bxc5 18. Qb2 e4 19. e3 Be6 20. Rd2 Rad8 {½-½ Stanciu,A (2373)-Lupulescu,C (2581) Sebes GP op 2023 (5)} 1/2-1/2

[Event "Karel Janecek Open 2025"]
[Site "Prague"]
[Date "2025.03.03"]
[Round "5.6"]
[White "Neuman, Petr"]
[Black "Ghazarian, Kirk"]
[Result "1/2-1/2"]
[Annotator "TA"]
[ECO "E35"]
[WhiteElo "2436"]
[BlackElo "2493"]
[PlyCount "27"]
[EventDate "2025.02.21"]
[EventType "swiss"]
[EventCountry "CZE"]
[SourceTitle "playchess.com"]
[Source "ChessBase"]
[SourceQuality "1"]
[TimeControl "40/5400+30:1800+30"]

{[%evp 16,27,4,-1,17,12,11,18,11,16,14,13,22,-13]} 1. d4 {[%emt 0:00:03]} Nf6 {[%emt 0:00:22]} 2. c4 {[%emt 0:00:05]} e6 {[%emt 0:00:06]} 3. Nc3 {[%emt 0:00:11]} Bb4 {[%emt 0:00:06]} 4. Qc2 {[%emt 0:00:04]} d5 {[%emt 0:00:15]} 5. cxd5 {[%emt 0:00:16]} exd5 {[%emt 0:00:08]} 6. Bg5 {[%emt 0:00:09]} h6 {[%emt 0:02:14]} 7. Bxf6 {[%emt 0:00:09]} Qxf6 {[%emt 0:01:14]} 8. a3 {[%emt 0:00:03]} Bxc3+ {[%emt 0:00:27]} 9. Qxc3 {[%emt 0:00:04] The position is equal.} Nc6 {[%emt 0:01:56] E35: Nimzo-Indian: Classical: 4...d5 5 cxd5 exd5.} 10. e3 {[%emt 0:00:22]} O-O {[%emt 0:00:29]} 11. Nf3 {[%emt 0:00:13]} Bg4 {[%emt 0:01:08]} 12. Be2 {[%emt 0:00:09]} Rfc8 $146 {[%emt 0:07:38]} (12... Qd6 13. Rc1 Rac8 14. O-O Ne7 15. Qc5 Qxc5 16. Rxc5 c6 17. Rfc1 Nf5 18. b4 Nd6 19. a4 a6 20. Bd3 f6 {½-½ Rakhimzhan,A (2354)-Stupak,K (2529) Kazakhstan Cup 2019 (4)}) 13. O-O {[%emt 0:01:37]} Ne7 {[%emt 0:03:45]} 14. Rac1 {[%emt 0:00:24] Not much happened in this game.   Weighted Error Value: White=0.00 (flawless) /Black=0.05 (flawless)   Inaccurate:     	White=1     	---        OK:         	White=3     	Black=2} 1/2-1/2

[Event "Karel Janecek Open 2025"]
[Site "Prague"]
[Date "2025.03.03"]
[Round "5.7"]
[White "Eren, Ataberk"]
[Black "Isik, Alparslan"]
[Result "1/2-1/2"]
[Annotator "TA"]
[WhiteElo "2402"]
[BlackElo "2477"]
[PlyCount "19"]
[EventDate "2025.02.21"]
[EventType "swiss"]
[EventCountry "CZE"]
[SourceTitle "playchess.com"]
[Source "ChessBase"]
[SourceQuality "1"]
[TimeControl "40/5400+30:1800+30"]

{[%evp 14,19,24,0,60,0,28,0]} 1. e4 {[%emt 0:08:21]} c5 {[%emt 0:00:19]} 2. Nf3 {[%emt 0:00:05]} d6 {[%emt 0:00:02]} 3. d4 {[%emt 0:00:34]} cxd4 {[%emt 0:00:03]} 4. Nxd4 {[%emt 0:00:04]} Nf6 {[%emt 0:00:05]} 5. Nc3 {[%emt 0:00:04]} a6 {[%emt 0:00:03]} 6. Be3 {[%emt 0:00:06]} Ng4 $146 {[%emt 0:00:05]} (6... e5 7. Nf3 Nc6 8. Bc4 Be6 9. Nd5 Rc8 10. Nxf6+ gxf6 11. Bxe6 fxe6 12. c4 f5 13. exf5 exf5 14. Qd5 Qd7 15. b3 Ne7 16. Qd1 f4 {0-1 Firouzja,A (2760)-Caruana,F (2803) Chessable Masters Winners rapid 2025 (2.4)}) 7. Bc1 {[%emt 0:00:04]} Nf6 {[%emt 0:00:04]} 8. Be3 {[%emt 0:00:04]} Ng4 {[%emt 0:00:04] 8...Be6 gains popularity. B90: Sicilian Najdorf: Unusual White 6th moves, 6 Be3 Ng4 and 6 Be3 e5.} 9. Bc1 {[%emt 0:00:08]} Nf6 {[%emt 0:00:05]} 10. Be3 {[%emt 0:00:10] Not much happened in this game.   Weighted Error Value: White=0.43/Black=0.00 (flawless)   Inaccurate:     	White=2     	---        Best:        	---       	Black=1} 1/2-1/2

[Event "Karel Janecek Open 2025"]
[Site "Prague"]
[Date "2025.03.03"]
[Round "5.8"]
[White "Haring, Filip"]
[Black "Sofronie, Iulian"]
[Result "0-1"]
[Annotator "ChessBase"]
[ECO "C78"]
[WhiteElo "2470"]
[BlackElo "2380"]
[PlyCount "100"]
[EventDate "2025.02.21"]
[EventType "swiss"]
[EventCountry "CZE"]
[SourceTitle "playchess.com"]
[Source "ChessBase"]
[SourceQuality "1"]
[TimeControl "40/5400+30:1800+30"]

1. e4 {[%emt 0:00:03]} e5 {[%emt 0:00:10]} 2. Nf3 {[%emt 0:00:06]} Nc6 {[%emt 0:00:02]} 3. Bb5 {[%emt 0:00:06]} a6 {[%emt 0:00:05]} 4. Ba4 {[%emt 0:00:05]} Nf6 {[%emt 0:00:45]} 5. O-O {[%emt 0:00:21]} b5 {[%emt 0:00:15]} 6. Bb3 {[%emt 0:00:07]} Bc5 {[%emt 0:00:04]} 7. c3 {[%emt 0:00:46]} d6 {[%emt 0:00:05]} 8. a4 {[%emt 0:00:21]} Rb8 {[%emt 0:00:05]} 9. d4 {[%emt 0:00:11]} Bb6 {[%emt 0:00:06]} 10. a5 {[%emt 0:00:57]} Ba7 {[%emt 0:00:18]} 11. h3 {[%emt 0:00:30]} Bb7 {[%emt 0:01:01]} 12. Re1 {[%emt 0:01:48]} O-O {[%emt 0:00:49]} 13. Be3 {[%emt 0:03:51]} exd4 {[%emt 0:01:47]} 14. cxd4 {[%emt 0:01:21]} Nb4 {[%emt 0:00:14]} 15. d5 {[%emt 0:00:14]} Bxe3 {[%emt 0:00:07]} 16. Rxe3 {[%emt 0:00:05]} c5 {[%emt 0:00:08]} 17. Qd2 {[%emt 0:01:26]} Re8 {[%emt 0:08:54]} 18. Nc3 {[%emt 0:01:04]} c4 {[%emt 0:05:57]} 19. Bc2 {[%emt 0:05:45]} Nxc2 {[%emt 0:01:56]} 20. Qxc2 {[%emt 0:00:28]} Nd7 {[%emt 0:01:01]} 21. Ne2 {[%emt 0:23:28]} Nc5 {[%emt 0:04:13]} 22. Ned4 {[%emt 0:01:23]} Qf6 {[%emt 0:02:08]} 23. Rd1 {[%emt 0:06:06]} g6 {[%emt 0:07:07]} 24. g3 {[%emt 0:10:38]} Re7 {[%emt 0:05:25]} 25. Rde1 {[%emt 0:01:44]} Rbe8 {[%emt 0:01:10]} 26. Kg2 {[%emt 0:06:12]} Qg7 {[%emt 0:06:49]} 27. b3 {[%emt 0:03:17]} f5 {[%emt 0:05:48]} 28. exf5 {[%emt 0:04:48]} Rxe3 {[%emt 0:00:31]} 29. Rxe3 {[%emt 0:00:57]} Rxe3 {[%emt 0:00:11]} 30. fxe3 {[%emt 0:00:21]} Bxd5 {[%emt 0:05:48]} 31. bxc4 {[%emt 0:00:08]} bxc4 {[%emt 0:00:49]} 32. g4 {[%emt 0:03:12]} Nb3 {[%emt 0:06:23]} 33. Kf2 {[%emt 0:16:44]} Nxd4 {[%emt 0:00:30]} 34. exd4 {[%emt 0:01:33]} Qf6 {[%emt 0:07:06]} 35. Qb1 {[%emt 0:03:54]} gxf5 {[%emt 0:00:49]} 36. g5 {[%emt 0:00:34]} Qe7 {[%emt 0:02:47]} 37. Qb8+ {[%emt 0:02:43]} Kg7 {[%emt 0:01:16]} 38. Qc8 {[%emt 0:01:07]} f4 {[%emt 0:00:22]} 39. Nh4 {[%emt 0:00:54]} Qe3+ {[%emt 0:00:35]} 40. Kf1 {[%emt 0:00:01]} Qd3+ {[%emt 0:00:19]} 41. Ke1 {[%emt 0:30:03]} Qg3+ {[%emt 0:30:11]} 42. Kf1 {[%emt 0:00:04]} Qxh4 {[%emt 0:00:28]} 43. Qf5 {[%emt 0:00:09]} Bg2+ {[%emt 0:04:26]} 44. Kxg2 {[%emt 0:00:06]} Qg3+ {[%emt 0:00:04]} 45. Kh1 {[%emt 0:00:04]} Qe1+ {[%emt 0:00:34]} 46. Kh2 {[%emt 0:00:04]} Qd2+ {[%emt 0:00:14]} 47. Kh1 {[%emt 0:00:02]} Qxd4 {[%emt 0:00:25]} 48. Qd7+ {[%emt 0:00:00]} Kg6 {[%emt 0:00:00]} 49. Qe6+ {[%emt 0:00:00]} Kxg5 {[%emt 0:00:00]} 50. h4+ {[%emt 0:00:00]} Kxh4 {[%emt 0:00:00]} 0-1

[Event "Karel Janecek Open 2025"]
[Site "Prague"]
[Date "2025.03.03"]
[Round "5.9"]
[White "Stinka, Jakub"]
[Black "Agmanov, Zhandos"]
[Result "1/2-1/2"]
[Annotator "TA"]
[ECO "E60"]
[WhiteElo "2377"]
[BlackElo "2469"]
[PlyCount "40"]
[EventDate "2025.02.21"]
[EventType "swiss"]
[EventCountry "CZE"]
[SourceTitle "playchess.com"]
[Source "ChessBase"]
[SourceQuality "1"]
[TimeControl "40/5400+30:1800+30"]

{[%evp 13,40,32,50,6,10,-9,2,-4,0,-25,-25,-17,29,33,38,23,28,-2,17,6,60,32,54,12,14,11,14,6,8]} 1. d4 {[%emt 0:34:05]} Nf6 {[%emt 0:00:26]} 2. c4 {[%emt 0:00:02]} g6 {[%emt 0:00:22]} 3. Nf3 {[%emt 0:00:04]} Bg7 {[%emt 0:00:22]} 4. g3 {[%emt 0:00:07]} O-O {[%emt 0:00:45]} 5. Bg2 {[%emt 0:00:03]} d6 {[%emt 0:00:19]} 6. O-O {[%emt 0:00:08]} Bf5 {[%emt 0:00:35]} 7. Nc3 {[%emt 0:01:11]} Ne4 {[%emt 0:00:39]} 8. Nxe4 {[%emt 0:01:03] E60: King's Indian: Unusual lines and Fianchetto Variation without Nc3.} Bxe4 {[%emt 0:00:06]} 9. Be3 {[%emt 0:00:02]} c5 {[%emt 0:38:13]} 10. Qd2 {[%emt 0:07:14]} Qb6 {[%emt 0:03:32]} 11. Rfd1 {[%emt 0:05:24]} Nc6 $1 {[%emt 0:06:13]} 12. Rac1 {[%emt 0:01:42]} Rfd8 $146 {[%emt 0:14:44]} (12... e6 {is superior.}) ({Predecessor:} 12... cxd4 13. Nxd4 Bxg2 14. Kxg2 Nxd4 15. Bxd4 Bxd4 16. Qxd4 Qxd4 17. Rxd4 Rfc8 {½-½ Lutz,R (2311)-Braun,G (2381) GER-ch 95th Ostfildern 2024 (8)}) 13. d5 $11 {[%emt 0:05:28]} Bxf3 {[%emt 0:00:37]} 14. Bxf3 {[%emt 0:00:58]} Ne5 {[%emt 0:01:06]} 15. Be4 {[%emt 0:03:10]} Qa6 {[%emt 0:06:56]} 16. b3 {[%emt 0:01:37]} Qa3 {[%emt 0:03:31]} ({Black should try} 16... b5 $11) 17. Bg5 {[%emt 0:06:24]} Re8 {[%emt 0:01:26]} 18. h4 {[%emt 0:00:23][%cal Oh4h5]} a5 {[%emt 0:05:00][%cal Ba7a5,Ba5a4,Ba4b3][%mdl 32] The position is equal.} 19. Kg2 {[%emt 0:06:08][%cal Oh4h5]} a4 {[%emt 0:01:16]} 20. Rb1 {[%emt 0:02:01][%cal Oh4h5]} axb3 {[%emt 0:07:01] Weighted Error Value: White=0.17 (very precise) /Black=0.13 (very precise)   Mistake:       	---       	Black=2      Inaccurate:     	White=3     	---        OK:         	White=4     	Black=7      Best:        	White=1     	---        Strong:       	---       	Black=1} 1/2-1/2